bitfinex/quotes_ETHUSD_20220201
["timestamp","ask_amount","ask_price","bid_price","bid_amount"]
[1643750886407,0.38410767,2792.3,2791.7,0.31459242]
[1643750887505,0.32089761,2791.8,2791.7,0.31459242]
[1643750887705,0.32089761,2791.8,2791.7,4.21459242]
[1643750888356,0.06561,2792.8,2791.7,4.21459242]
[1643750888555,0.06561,2792.8,2791.8,0.1789]
[1643750888961,0.06583,2792.9,2792.1,0.80810647]
[1643750889160,0.06583,2792.9,2791.9,1.2282]
[1643750889357,0.40894849,2792.8,2791.9,1.2282]
[1643750890157,0.32110536,2792.0,2791.9,1.2282]
[1643750890357,0.06583,2792.9,2791.8,1.08453683]
[1643750891357,0.34032414,2792.1,2791.8,1.08453683]
[1643750891560,0.06583,2792.9,2791.8,1.08453683]
[1643750892225,0.06583,2792.9,2791.8,0.1789]
[1643750892425,0.39195915,2792.4,2791.8,0.1789]
[1643750893633,0.39195915,2792.4,2791.6,0.99689858]
[1643750893832,0.39195915,2792.4,2791.6,0.94689858]
[1643750895952,2.39195915,2792.4,2791.6,0.1789]
[1643750896157,0.39195915,2792.4,2791.6,0.1789]
[1643750896351,0.0656,2792.3,2791.6,0.1289]
[1643750897052,0.37154663,2791.7,2791.6,0.1289]
[1643750897252,0.22289758,2791.7,2791.6,0.1289]
[1643750899262,0.22289758,2791.7,2791.2,0.1791]
[1643750899514,23.1953,2792.4,2791.2,0.1791]
[1643750899515,2.1153,2792.4,2791.2,0.1791]
[1643750900522,0.1153,2792.4,2791.2,0.1791]
[1643750900723,0.1156,2792.5,2791.2,1.84028984]
[1643750901025,0.1159,2792.8,2791.4,0.66118984]
[1643750901223,0.1162,2793.0,2791.5,1.86458984]
[1643750901422,0.1165,2793.1,2791.5,1.86458984]
[1643750901623,0.37247009,2792.3,2791.6,3.6079]
[1643750902023,0.37247009,2792.3,2791.6,3.7868]
[1643750903123,0.37247009,2792.3,2791.6,4.5179164]
[1643750905263,1.01187,2792.6,2791.6,4.5179164]
[1643750905462,0.1162,2792.6,2791.6,4.6968164]
[1643750906062,0.1162,2792.6,2791.7,0.27409342]
[1643750906063,1.22774581,2792.5,2791.7,0.27409342]
[1643750906761,0.36783544,2792.3,2791.7,0.27409342]
[1643750907006,1.22774581,2792.2,2791.7,0.27409342]
[1643750907504,0.1162,2792.6,2791.7,0.27409342]
[1643750907702,1.2581584,2792.5,2791.7,0.27409342]
[1643750908004,1.2581584,2792.4,2791.7,0.27409342]
[1643750908306,0.41902843,2792.5,2791.7,0.27409342]
[1643750908506,1.2581584,2792.4,2791.7,0.27409342]
[1643750909106,1.2581584,2792.3,2791.7,0.27409342]
[1643750909309,0.1144,2792.9,2791.7,0.27409342]
[1643750909511,1.25825376,2792.8,2791.8,0.1789]
[1643750909709,0.1138,2792.7,2791.9,0.27409342]
[1643750909909,0.1138,2792.7,2791.8,0.1789]
[1643750909910,0.37429309,2792.5,2792.0,0.27409342]
[1643750910109,0.37429309,2792.5,2792.1,0.27409342]
[1643750910110,1.25825376,2792.4,2792.1,0.27409342]
[1643750910311,1.25825376,2792.4,2792.2,0.27409342]
[1643750910611,1.25825376,2792.4,2791.7,0.1789]
[1643750910857,1.25825376,2792.4,2791.8,0.24416871]
[1643750911458,1.25825376,2792.4,2792.1,0.67115741]
[1643750911656,1.25825376,2792.6,2792.2,0.24416871]
[1643750911857,1.25825376,2792.5,2792.2,0.24416871]
[1643750912061,1.25825376,2792.4,2792.2,0.24416871]
[1643750912257,1.25825376,2792.3,2792.2,0.24416871]
[1643750912460,1.25825376,2792.7,2792.2,0.24416871]
[1643750912658,0.43377662,2792.6,2792.2,0.24416871]
[1643750912857,1.25825376,2792.5,2791.8,0.24416871]
[1643750913162,1.25825376,2792.5,2791.9,0.24392021]
[1643750913361,1.25825376,2792.5,2792.0,0.24392021]
[1643750913562,1.25825376,2792.5,2792.1,0.24392021]
[1643750913762,1.25825376,2792.5,2791.7,0.1789]
[1643750913763,1.25825376,2792.5,2792.2,0.24392021]
[1643750913962,1.25825376,2792.4,2792.3,0.24392021]
[1643750914362,1.25825376,2792.4,2791.7,1.07435]
[1643750914363,1.25825376,2792.4,2791.8,0.24392021]
[1643750914610,0.67621133,2793.1,2791.9,0.42282021]
[1643750914611,0.1156,2793.0,2791.9,0.42282021]
[1643750914807,1.70968019,2792.9,2792.0,0.24392021]
[1643750915005,1.26026738,2792.8,2792.1,0.1789]
[1643750915204,1.26026738,2792.8,2792.2,0.24392021]
[1643750916205,1.26026738,2792.8,2792.2,1.12782246]
[1643750916409,1.26026738,2792.8,2792.3,0.24392021]
[1643750920069,1.26026738,2792.8,2792.4,0.24392021]
[1643750920264,1.26026738,2792.8,2792.5,0.24392021]
[1643750920463,1.26026738,2792.8,2792.0,0.1789]
[1643750920662,1.26026738,2792.8,2792.1,0.24104472]
[1643750920861,0.36958695,2792.4,2792.1,0.24104472]
[1643750921061,0.1156,2792.9,2792.1,0.24104472]
[1643750921664,1.26635267,2792.8,2792.1,0.24104472]
[1643750921864,0.1156,2792.7,2792.1,0.24104472]
[1643750922107,0.32591948,2792.5,2792.1,0.24104472]
[1643750922313,1.26635267,2792.4,2792.1,0.24104472]
[1643750923810,1.26635267,2792.4,2792.2,0.24104472]
[1643750924013,1.26635267,2792.4,2792.3,0.24104472]
[1643750925857,1.26635267,2792.4,2791.7,3.2722]
[1643750925858,3.55690415,2792.4,2791.7,3.2722]
[1643750926055,3.55690415,2792.4,2791.8,0.23520858]
[1643750926056,0.32412325,2791.9,2791.8,0.23520858]
[1643750926456,1.26635267,2792.1,2791.8,0.23520858]
[1643750926657,1.26635267,2792.0,2791.9,0.23520858]
[1643750927057,1.26635267,2792.4,2791.9,0.23520858]
[1643750927257,1.26635267,2792.4,2792.0,0.23520858]
[1643750927456,1.26635267,2792.4,2791.5,2.10217572]
[1643750927457,1.26635267,2792.4,2792.1,0.23520858]
[1643750927666,1.26635267,2792.4,2792.2,0.23520858]
[1643750927858,1.26635267,2792.4,2792.3,0.23520858]
[1643750928259,1.70825038,2792.4,2792.3,0.23520858]
[1643750928862,1.26635267,2792.4,2792.3,0.23520858]
[1643750929261,1.26635267,2792.8,2792.3,0.23520858]
[1643750929507,1.26635267,2792.8,2792.1,0.92691985]
[1643750929508,0.1154,2792.7,2792.4,0.23520858]
[1643750929711,0.1154,2792.7,2792.5,0.23520858]
[1643750929712,1.22182939,2792.6,2792.5,0.23520858]
[1643750929910,1.44649716,2792.6,2792.5,0.23520858]
[1643750931312,0.99830892,2792.6,2792.5,0.23520858]
[1643750931511,0.1155,2792.9,2792.5,0.23520858]
[1643750931713,0.1155,2792.9,2792.0,2.91148938]
[1643750931913,0.1157,2793.1,2792.0,0.66118984]
[1643750932114,0.1157,2793.1,2792.1,0.66118984]
[1643750932314,0.37485502,2792.9,2792.5,0.82655516]
[1643750933763,0.116,2793.3,2792.5,0.82655516]
[1643750934665,0.79221133,2793.3,2792.5,0.82655516]
[1643750935265,0.116,2793.3,2792.5,0.82655516]
[1643750936165,0.38017334,2792.9,2792.5,0.82655516]
[1643750937617,0.116,2793.3,2792.5,0.82655516]
[1643750938123,0.1156,2793.4,2792.5,0.82655516]
[1643750939024,0.39490113,2793.0,2792.5,0.82655516]
[1643750940869,0.39490113,2793.0,2792.6,1.90836132]
[1643750941472,0.1156,2793.4,2792.6,1.90836132]
[1643750942174,0.1156,2793.4,2792.7,0.516]
[1643750942370,2.36943766,2794.1,2793.2,0.91055283]
[1643750942371,0.1155,2793.7,2793.2,0.91055283]
[1643750942575,0.3690341,2793.5,2793.2,0.91055283]
[1643750942970,0.1154,2793.8,2793.2,0.91055283]
[1643750943175,0.1153,2793.9,2793.2,0.91055283]
[1643750943373,0.1153,2793.9,2793.3,1.94067796]
[1643750943575,0.1152,2794.0,2793.3,1.93200601]
[1643750943776,0.1152,2794.0,2793.3,1.97567981]
[1643750943977,0.79141133,2794.0,2793.2,0.91055283]
[1643750944173,0.4337005,2793.6,2793.2,0.91055283]
[1643750944608,0.4337005,2793.6,2793.2,2.81234856]
[1643750944805,0.4337005,2793.6,2793.2,0.91055283]
[1643750945006,0.79141133,2794.0,2793.2,2.82121349]
[1643750945205,0.1152,2794.0,2793.2,2.82121349]
[1643750945404,0.1152,2794.0,2793.3,0.89498]
[1643750945606,0.67621133,2794.2,2793.4,2.22949095]
[1643750945810,0.1159,2794.1,2793.4,2.22949095]
[1643750946004,0.44249825,2793.7,2793.4,3.44489095]
[1643750946204,0.44249825,2793.7,2793.3,0.89498]
[1643750949762,0.1171,2794.1,2793.3,0.89498]
[1643750949964,1.27749935,2794.0,2793.4,0.2233598]
[1643750950162,1.27749935,2793.9,2793.0,1.3378]
[1643750950365,2.80850449,2794.2,2793.0,1.3378]
[1643750950366,1.27749935,2793.8,2793.0,1.3378]
[1643750950564,1.27749935,2793.8,2792.9,3.3293]
[1643750950565,3.47826661,2793.7,2792.9,3.5082]
[1643750950766,3.47826661,2793.7,2793.0,0.22351458]
[1643750950767,1.27749935,2793.6,2793.0,0.22351458]
[1643750950971,1.27749935,2793.6,2792.6,1.22]
[1643750950972,2.114,2793.5,2792.6,1.22]
[1643750951163,0.89547,2793.2,2792.7,0.20147819]
[1643750951364,1.39149935,2793.1,2792.7,0.20147819]
[1643750951666,1.27749935,2793.0,2792.7,0.20147819]
[1643750952105,1.27749935,2792.9,2792.1,4.1749]
[1643750952405,1.27749935,2792.8,2792.2,0.19374125]
[1643750952607,0.1139,2793.2,2792.2,0.19374125]
[1643750952803,0.89544,2793.0,2792.2,0.19374125]
[1643750953005,1.30802429,2792.9,2792.2,1.27274125]
[1643750953207,1.30802429,2792.9,2792.3,0.19374125]
[1643750953610,0.7921714,2792.8,2792.3,0.19374125]
[1643750954407,2.02908805,2792.7,2792.3,0.19374125]
[1643750954607,0.35400201,2792.6,2792.3,0.19374125]
[1643750954810,0.35400201,2792.6,2792.3,1.27274125]
[1643750955012,1.1864459,2792.5,2792.4,0.19374125]
[1643750955210,1.1864459,2792.5,2792.3,1.079]
[1643750955610,3.18319293,2792.5,2792.3,1.079]
[1643750955854,7.71472348,2792.4,2792.3,1.079]
[1643750956258,5.5,2792.3,2791.9,0.25]
[1643750956456,1.1864459,2792.2,2791.5,0.1789]
[1643750956656,1.1864459,2792.2,2791.6,0.28106865]
[1643750956657,0.89579,2792.1,2791.6,0.28106865]
[1643750956856,0.89579,2792.1,2791.2,0.1789]
[1643750956857,1.1864459,2792.0,2791.7,0.28106865]
[1643750957055,1.4864459,2792.0,2791.3,0.28106865]
[1643750957255,1.16242681,2791.9,2791.3,0.28106865]
[1643750957756,0.1121,2792.0,2791.4,0.28106865]
[1643750957963,0.1103,2792.3,2791.5,0.28106865]
[1643750958162,1.20366149,2792.2,2791.6,0.28106865]
[1643750958462,0.1086,2792.1,2791.7,0.28106865]
[1643750958662,0.8924421,2791.8,2791.2,0.28106865]
[1643750958866,0.8924421,2791.8,2791.3,0.29790792]
[1643750959066,0.1069,2792.2,2791.3,0.29790792]
[1643750959269,1.20342565,2792.1,2791.4,0.29790792]
[1643750959523,0.1052,2792.0,2791.5,0.29790792]
[1643750959727,0.33270912,2791.4,2791.2,0.29790792]
[1643750959923,0.89581,2791.9,2791.3,0.29783336]
[1643750960125,0.89581,2791.9,2791.4,0.29783336]
[1643750960324,0.89581,2791.9,2791.5,0.29783336]
[1643750960525,0.89581,2791.9,2791.6,0.29783336]
[1643750960725,0.89581,2791.9,2791.7,0.29783336]
[1643750960928,4.26719903,2791.9,2791.8,0.29783336]
[1643750961126,0.34925609,2791.4,2791.1,0.1789]
[1643750961326,0.34925609,2791.4,2791.2,0.29770542]
[1643750962327,3.94581,2791.9,2791.2,0.29770542]
[1643750962526,0.89581,2791.9,2791.2,0.29770542]
[1643750963566,0.36422407,2791.5,2791.2,0.29770542]
[1643750965571,0.1156,2792.1,2791.2,0.29770542]
[1643750965769,1.2683362,2792.0,2791.2,0.29770542]
[1643750965967,1.2683362,2792.0,2791.0,0.1791]
[1643750965968,1.2683362,2792.0,2791.3,0.29770542]
[1643750966169,1.2683362,2792.0,2791.4,0.29770542]
[1643750966368,1.2683362,2792.0,2791.5,0.29770542]
[1643750966568,0.3583829,2791.3,2791.0,0.1791]
[1643750966776,0.67441034,2791.9,2791.1,0.23116538]
[1643750967004,0.1156,2792.1,2791.1,0.23116538]
[1643750967005,2.00527137,2791.8,2791.1,0.23116538]
[1643750967204,1.0114217,2792.1,2791.1,0.23116538]
[1643750967205,3.63572817,2792.1,2791.1,0.23116538]
[1643750967410,1.25679996,2792.0,2791.1,0.23116538]
[1643750967607,2.14945214,2791.9,2791.1,0.23116538]
[1643750967807,0.1156,2791.9,2791.1,0.23116538]
[1643750968009,3.06278612,2791.9,2791.1,0.23116538]
[1643750968206,0.35839483,2791.8,2791.1,0.23116538]
[1643750968608,1.06433172,2791.9,2791.1,0.23116538]
[1643750969210,1.06433172,2791.9,2790.9,1.07929043]
[1643750969211,0.94873172,2791.9,2791.2,0.23116538]
[1643750969416,0.94873172,2791.9,2791.3,0.23116538]
[1643750969611,0.1156,2791.8,2791.4,0.23116538]
[1643750969810,0.1156,2791.8,2790.9,0.1791]
[1643750970112,3.02083169,2791.8,2791.0,0.24153304]
[1643750970309,1.01151,2791.8,2791.0,0.24153304]
[1643750970508,0.35012241,2791.3,2791.0,0.24153304]
[1643750970966,1.0114528,2791.9,2791.0,0.24153304]
[1643750971167,0.1156,2791.9,2791.3,0.93850272]
[1643750971367,0.1155,2792.1,2791.3,0.93850272]
[1643750971572,0.1155,2792.5,2791.4,1.49051468]
[1643750971766,0.8955192,2792.9,2791.5,3.71813304]
[1643750971767,0.1154,2792.8,2791.5,3.71813304]
[1643750972071,1.27235982,2792.7,2791.6,0.24153304]
[1643750972266,0.34129537,2792.0,2791.7,0.24153304]
[1643750972466,1.05618971,2792.6,2791.8,0.24153304]
[1643750972467,0.1154,2792.6,2791.8,0.24153304]
[1643750972667,3.17678346,2793.1,2791.9,0.24153304]
[1643750972668,0.1154,2792.8,2791.9,0.24153304]
[1643750972870,4.8435489,2793.4,2791.9,0.24153304]
[1643750972871,0.1154,2793.0,2792.0,0.25500916]
[1643750973068,0.1155,2793.5,2792.1,1.67033304]
[1643750973268,1.26692095,2793.4,2792.2,2.60298952]
[1643750973471,0.1157,2793.6,2792.3,0.42043304]
[1643750973472,0.40127997,2793.2,2792.3,0.42043304]
[1643750973667,0.40127997,2793.2,2792.6,0.89517]
[1643750973869,0.40127997,2793.2,2792.7,0.1789]
[1643750974068,0.40127997,2793.2,2792.7,0.40905186]
[1643750974266,2.67524821,2794.1,2792.7,0.1789]
[1643750974524,1.26687309,2794.0,2792.7,0.1789]
[1643750974726,0.1163,2793.9,2792.8,0.89514]
[1643750974923,1.26687309,2793.8,2792.9,0.1789]
[1643750975322,0.37747568,2793.2,2792.9,0.1789]
[1643750975723,0.1165,2794.1,2792.9,0.1789]
[1643750975927,0.1165,2794.1,2793.0,1.11809103]
[1643750975928,1.27368472,2794.0,2793.0,1.11809103]
[1643750976126,1.27368472,2794.0,2793.1,2.85145508]
[1643750976327,1.27368472,2793.9,2793.1,2.62840405]
[1643750976622,0.67621133,2794.5,2793.1,2.62840405]
[1643750976623,1.27368472,2793.8,2793.1,2.62840405]
[1643750976827,0.42573579,2793.6,2793.3,0.95114848]
[1643750977123,0.42573579,2793.6,2793.1,3.81260405]
[1643750977327,0.42573579,2793.6,2793.1,2.62840405]
[1643750977526,0.42573579,2793.6,2793.1,0.1789]
[1643750978027,0.1136,2794.1,2793.1,0.1789]
[1643750978268,1.28240637,2794.0,2793.1,2.1789]
[1643750978466,0.1129,2794.4,2793.2,0.72978276]
[1643750978665,1.28220497,2794.3,2793.2,0.516]
[1643750978866,0.42981076,2793.7,2793.5,0.93273101]
[1643750979066,0.42981076,2793.7,2793.4,1.07381]
[1643750979268,0.42981076,2793.7,2793.4,0.89491]
[1643750980070,0.42981076,2793.7,2793.2,0.72923342]
[1643750980268,0.42981076,2793.7,2793.3,0.1789]
[1643750980866,2.17304707,2794.4,2793.3,0.1789]
[1643750981067,2.17304707,2794.4,2793.2,0.72923342]
[1643750981068,1.28144008,2794.3,2793.2,0.72923342]
[1643750981268,0.1162,2794.2,2793.2,0.90813342]
[1643750981468,1.28144008,2794.1,2793.2,0.90813342]
[1643750982120,0.41037022,2793.3,2793.2,0.1789]
[1643750982919,2.28565957,2794.2,2793.2,0.1789]
[1643750982920,1.0112873,2794.2,2793.2,0.1789]
[1643750983119,1.3112873,2794.2,2793.2,0.1789]
[1643750983325,1.28810551,2794.1,2793.2,0.1789]
[1643750983726,2.19950274,2794.1,2793.2,0.1789]
[1643750983924,1.28810551,2794.0,2793.2,0.1789]
[1643750984126,1.58810551,2794.0,2793.2,0.1789]
[1643750984326,2.91664402,2794.1,2793.2,0.1789]
[1643750984524,0.4254678,2793.3,2793.2,0.1789]
[1643750984724,0.4254678,2793.3,2792.8,1.03330997]
[1643750985033,0.4254678,2793.3,2792.4,1.1383]
[1643750985226,0.4254678,2793.3,2792.5,0.19885956]
[1643750985854,0.4254678,2793.3,2792.7,0.9447572]
[1643750988464,0.4254678,2793.3,2792.4,1.1383]
[1643750988665,0.4254678,2793.3,2792.5,0.20829042]
[1643750989508,0.4254678,2793.3,2792.7,0.76952214]
[1643750990515,0.4254678,2793.3,2792.8,0.20828078]
[1643750990716,0.4254678,2793.3,2792.7,0.76952214]
[1643750992521,0.4254678,2793.3,2792.4,2.03351]
[1643750992825,0.4254678,2793.3,2792.5,0.19896431]
[1643750992826,0.7254678,2793.3,2792.5,0.19896431]
[1643750993262,0.4254678,2793.3,2792.5,0.19896431]
[1643750993666,0.33221854,2792.7,2792.5,0.19896431]
[1643750993868,0.24317154,2792.7,2792.5,0.19896431]
[1643750994469,0.4789,2793.4,2792.5,0.19896431]
[1643750994969,1.29884112,2793.3,2792.5,0.19896431]
[1643750995570,0.4789,2793.4,2792.5,0.19896431]
[1643750995975,0.1789,2793.4,2792.5,0.19896431]
[1643750996171,0.1789,2793.4,2792.8,0.61896426]
[1643750996372,0.1789,2793.6,2792.8,0.61896426]
[1643750996571,0.43052221,2793.5,2792.9,0.19733736]
[1643751000865,0.73052221,2793.5,2792.5,0.179]
[1643751001060,0.73052221,2793.5,2792.6,0.19505285]
[1643751001860,0.3417922,2793.0,2792.6,0.19505285]
[1643751003368,0.3417922,2793.0,2792.5,0.179]
[1643751003567,0.3417922,2793.0,2792.1,7.2665]
[1643751003568,2.02207591,2792.9,2792.1,0.1789]
[1643751003765,0.1789,2792.9,2792.2,0.19695471]
[1643751003966,0.4002773,2792.3,2792.2,0.19695471]
[1643751004265,0.4002773,2792.3,2792.0,0.13819997]
[1643751004509,0.4002773,2792.3,2792.1,0.1970263]
[1643751004712,0.4002773,2792.3,2791.8,0.31709997]
[1643751004919,0.4002773,2792.3,2791.8,0.1789]
[1643751004920,1.67174524,2792.2,2791.8,0.1789]
[1643751005111,0.7002773,2792.3,2791.4,0.1789]
[1643751005312,3.82779094,2792.2,2791.5,0.19730955]
[1643751005512,0.74360472,2792.1,2791.6,0.19730955]
[1643751005711,2.22714734,2792.0,2791.2,0.90482515]
[1643751005919,2.22714734,2792.0,2791.3,0.18640332]
[1643751006118,2.82714734,2792.0,2791.4,0.18640332]
[1643751006313,2.82714734,2792.0,2791.5,0.18640332]
[1643751006514,2.82714734,2792.0,2791.1,0.2409]
[1643751006712,2.52714734,2792.0,2791.2,0.1865332]
[1643751007113,0.38124759,2791.3,2791.2,0.1865332]
[1643751007314,0.38124759,2791.3,2791.2,0.0342534]
[1643751008117,0.38124759,2791.3,2790.7,0.1791]
[1643751008764,1.07502,2791.9,2790.7,0.1791]
[1643751008765,0.1791,2791.9,2790.7,0.1791]
[1643751009167,0.1791,2791.9,2790.7,0.84028984]
[1643751009465,0.1791,2792.1,2791.2,1.08574404]
[1643751009666,0.32732868,2791.7,2791.3,0.93424394]
[1643751009865,0.32732868,2791.7,2791.2,1.08574404]
[1643751010967,0.32732868,2791.7,2791.2,0.98574404]
[1643751013820,0.24725893,2791.7,2791.2,0.98574404]
[1643751014416,0.24725893,2791.7,2790.9,0.1791]
[1643751014617,0.24725893,2791.7,2791.4,0.44287202]
[1643751014814,0.1791,2792.1,2791.4,0.44287202]
[1643751015014,2.32280701,2792.7,2791.4,0.44287202]
[1643751015015,0.1789,2792.2,2791.4,0.44287202]
[1643751015416,0.71830566,2792.1,2791.4,0.44287202]
[1643751015618,0.1789,2792.0,2791.4,0.44287202]
[1643751016865,0.39683853,2792.0,2791.4,0.44287202]
[1643751017066,2.5843646,2792.0,2791.4,0.44287202]
[1643751017265,2.8843646,2792.0,2791.4,0.44287202]
[1643751017665,1.61239747,2791.6,2791.4,0.44287202]
[1643751018066,0.3930507,2791.5,2791.4,0.44287202]
[1643751019710,0.15079559,2791.5,2791.4,0.44287202]
[1643751019911,0.15079559,2791.5,2791.4,0.98574404]
[1643751027317,0.15079559,2791.5,2791.4,1.13522839]
[1643751029019,0.15079559,2791.5,2791.4,0.98574404]
[1643751029220,0.15079559,2791.5,2791.4,1.10596693]
[1643751032372,1.0748612,2792.0,2791.4,1.10596693]
[1643751032574,1.0748612,2792.0,2791.5,0.12022289]
[1643751032969,1.0748612,2792.0,2791.8,0.98574404]
[1643751033571,4.2044368,2791.9,2791.8,0.98574404]
[1643751033771,4.3833368,2791.9,2791.8,0.98574404]
[1643751034172,4.3833368,2791.9,2790.9,0.1789]
[1643751034173,0.62896393,2791.7,2790.9,0.1789]
[1643751034373,0.8958842,2791.6,2791.0,0.1381191]
[1643751034622,0.8958842,2791.6,2791.1,0.1381191]
[1643751034819,0.8958842,2791.6,2791.2,0.1381191]
[1643751035026,0.62896393,2791.7,2791.3,0.1381191]
[1643751035226,0.62896393,2791.7,2791.2,0.1381191]
[1643751035422,0.62896393,2791.7,2791.3,0.1381191]
[1643751035622,0.62896393,2791.7,2791.4,0.1381191]
[1643751035823,0.62896393,2791.7,2791.5,0.1381191]
[1643751036022,0.62896393,2791.7,2791.6,0.1381191]
[1643751036422,0.62896393,2791.7,2791.2,0.1381191]
[1643751037328,0.37798663,2791.3,2791.2,0.1381191]
[1643751037523,0.62896393,2791.7,2791.2,0.1381191]
[1643751037923,0.62896393,2791.7,2791.3,0.1381191]
[1643751038125,0.62896393,2791.7,2791.4,0.1381191]
[1643751038374,0.62896393,2791.7,2791.5,0.1381191]
[1643751038672,0.4253763,2791.6,2791.2,0.67870771]
[1643751038871,0.4253763,2791.6,2791.3,0.13820664]
[1643751039273,0.4253763,2791.6,2791.4,0.13820664]
[1643751039672,0.4253763,2791.6,2791.5,0.13820664]
[1643751040672,0.4253763,2791.6,2790.9,0.13820664]
[1643751040871,0.4253763,2791.6,2790.9,0.79939648]
[1643751041077,1.3212351,2791.6,2790.9,0.79939648]
[1643751041480,1.3212351,2791.6,2791.0,0.96382477]
[1643751041678,1.3212351,2791.6,2791.1,0.13820664]
[1643751043323,0.4253763,2791.6,2791.1,0.13820664]
[1643751044322,1.37117363,2791.5,2791.3,0.96382477]
[1643751044523,1.37117363,2791.5,2791.4,0.13820664]
[1643751046975,0.62896393,2791.7,2791.4,3.10203141]
[1643751047174,0.62896393,2791.7,2791.6,8.42501461]
[1643751047375,0.67621133,2792.7,2791.8,0.98286501]
[1643751047575,1.23227503,2792.6,2792.0,0.97621592]
[1643751047780,0.67283509,2792.9,2792.3,0.96382477]
[1643751047781,1.23227503,2792.5,2792.3,0.96382477]
[1643751047973,1.07962111,2793.2,2792.3,0.96382477]
[1643751047974,0.37431187,2792.4,2792.3,0.96382477]
[1643751048176,1.6065869,2792.4,2792.3,1.23982758]
[1643751049834,6.8565869,2792.4,2792.3,0.96382477]
[1643751050035,8.06404577,2792.4,2792.3,0.96382477]
[1643751050232,10.06404576,2792.4,2792.3,0.96382477]
[1643751050437,10.96476687,2792.4,2792.3,0.96382477]
[1643751050632,7.1,2792.3,2791.4,0.1789]
[1643751050834,1.41117503,2792.2,2791.5,0.25572029]
[1643751051034,1.41117503,2792.2,2791.1,0.25572029]
[1643751051035,1.23227503,2792.1,2791.1,0.25572029]
[1643751051232,0.8958287,2791.9,2791.2,0.25572029]
[1643751051434,1.41137503,2791.8,2791.3,0.25572029]
[1643751051634,1.23227503,2791.7,2791.4,0.25572029]
[1643751051833,0.94102494,2791.9,2791.5,0.25572029]
[1643751051834,1.23227503,2791.6,2791.5,0.25572029]
[1643751052133,8.03227503,2791.6,2791.5,0.25572029]
[1643751052337,8.51137503,2791.6,2790.5,3.3452]
[1643751052533,8.51137503,2791.6,2790.6,0.29219354]
[1643751052534,3.49247405,2791.5,2790.6,0.29219354]
[1643751052733,3.49247405,2791.5,2790.7,0.29219354]
[1643751052734,1.23227503,2791.4,2790.7,0.29219354]
[1643751052939,0.74433277,2791.0,2790.4,0.29219354]
[1643751053142,0.74433277,2791.0,2790.5,0.29219354]
[1643751053143,1.23227503,2790.9,2790.5,0.29219354]
[1643751053386,1.23227503,2790.8,2790.6,0.29219354]
[1643751053686,0.4791,2790.9,2790.7,0.29219354]
[1643751053986,0.33391142,2790.5,2790.3,0.1791]
[1643751054394,0.1791,2790.9,2790.4,0.29189656]
[1643751054587,1.2164194,2790.8,2790.4,0.29189656]
[1643751054789,1.1791,2791.6,2790.5,0.29189656]
[1643751054987,1.21596102,2791.5,2790.6,0.29189656]
[1643751055189,0.1791,2791.4,2790.7,0.29189656]
[1643751055389,0.1791,2791.4,2790.8,0.29189656]
[1643751055390,0.72366393,2791.2,2790.8,0.29189656]
[1643751055594,1.39506102,2791.1,2790.9,0.29189656]
[1643751055790,1.21596102,2791.0,2790.2,2.0]
[1643751055990,0.32025521,2790.7,2790.3,0.29187545]
[1643751056390,0.32025521,2790.7,2790.4,0.29187545]
[1643751056590,0.32025521,2790.7,2790.5,0.29187545]
[1643751056792,0.32025521,2790.7,2790.6,0.29187545]
[1643751057211,0.32025521,2790.7,2790.2,0.29187545]
[1643751057412,0.8960555,2791.0,2790.3,0.29187545]
[1643751057614,0.4791,2791.1,2790.4,0.96789301]
[1643751057615,0.1791,2791.1,2790.4,0.96789301]
[1643751057810,1.25262567,2791.0,2790.5,0.29187545]
[1643751058012,0.1791,2791.2,2790.6,0.29187545]
[1643751058215,1.25262664,2791.1,2790.7,0.29187545]
[1643751058415,0.37962368,2790.8,2790.4,0.67601756]
[1643751058815,0.1791,2791.0,2790.4,0.9301782]
[1643751059016,0.8960548,2791.0,2790.4,0.67601756]
[1643751059417,0.8960548,2791.0,2790.4,0.9301782]
[1643751059618,3.20409,2791.8,2790.6,0.67601756]
[1643751059619,0.1791,2791.4,2790.6,0.67601756]
[1643751059819,1.67261949,2791.3,2790.7,2.69442127]
[1643751060023,0.42058058,2791.3,2790.8,1.1092782]
[1643751060225,1.7918138,2791.8,2790.9,2.84959279]
[1643751060420,1.25197106,2791.7,2791.3,0.89403029]
[1643751060620,1.25197106,2791.6,2791.4,0.25416064]
[1643751060879,1.25197106,2791.5,2791.4,0.25416064]
[1643751061083,1.57431355,2792.2,2791.4,0.25416064]
[1643751061084,1.0748025,2792.2,2791.4,0.25416064]
[1643751061279,1.67205713,2792.1,2791.5,0.25416064]
[1643751061480,1.25189128,2792.0,2791.6,2.12652563]
[1643751061682,1.25189128,2792.0,2791.7,0.25416064]
[1643751061880,0.1789,2792.6,2791.8,1.93269591]
[1643751062078,1.25256977,2792.5,2791.9,0.25416064]
[1643751062280,0.1789,2792.5,2791.9,0.25416064]
[1643751062578,1.25256977,2792.4,2792.0,0.25416064]
[1643751062779,1.25256977,2792.4,2792.1,0.25416064]
[1643751062979,1.25256977,2792.3,2792.2,0.25416064]
[1643751063180,1.25256977,2792.3,2791.6,0.25416064]
[1643751063389,1.25256977,2792.2,2791.6,0.25416064]
[1643751063585,1.73146977,2792.2,2791.6,0.25416064]
[1643751063783,1.25256977,2792.1,2791.7,0.25416064]
[1643751063985,0.1789,2792.0,2791.8,0.25416064]
[1643751064183,0.1789,2792.0,2791.2,2.1245971]
[1643751064184,1.25256977,2791.9,2791.2,2.80061466]
[1643751064383,1.25256977,2791.9,2791.3,0.25384839]
[1643751064628,1.25256977,2792.1,2791.3,0.25384839]
[1643751064827,1.43166977,2792.0,2791.4,0.78739634]
[1643751065026,1.25256977,2791.9,2791.5,0.25384839]
[1643751065226,0.1791,2792.2,2791.5,0.25384839]
[1643751065427,1.25176023,2792.1,2791.5,0.25384839]
[1643751065627,0.1789,2792.0,2791.5,0.25384839]
[1643751065826,1.25176023,2791.9,2791.5,0.25384839]
[1643751066225,0.1791,2792.2,2791.5,0.25384839]
[1643751066424,1.2516912,2792.1,2791.5,0.25384839]
[1643751066826,1.2516912,2792.1,2791.6,0.25384839]
[1643751067026,0.1789,2792.0,2791.7,0.25384839]
[1643751067226,1.2516912,2791.9,2791.8,0.25384839]
[1643751067428,1.5516912,2791.9,2791.8,0.25384839]
[1643751067626,4.9016912,2791.9,2791.8,0.25286381]
[1643751067827,1.2516912,2791.9,2791.3,0.78216504]
[1643751068031,1.2516912,2791.9,2791.4,0.25256664]
[1643751068275,1.2516912,2791.9,2791.5,0.25256664]
[1643751068481,0.52377929,2791.8,2791.6,0.25256664]
[1643751068686,0.39236064,2791.3,2791.0,0.1789]
[1643751068881,0.39236064,2791.3,2791.1,0.25255901]
[1643751069382,0.39236064,2791.3,2791.2,0.25255901]